[Event "2. Itzehoer Schach Open"]
[Site "Itzehoe, Germany"]
[Date "2023.04.30"]
[Round "3.1"]
[White "Pitic, Jasmin"]
[Black "Carlstedt, Jonathan"]
[Result "0-1"]
[TimeControl "90 min / 40 Züge + 30 min + 30 Sek pro Zug"]
[WhiteElo "2067"]
[BlackElo "2452"]

1. d4 {[%clk 01:30:57]} {[%emt 00:00:02]} Nf6 {[%clk 01:28:34]} {[%emt
00:02:26]} 2. c4 {[%clk 01:31:21]} {[%emt 00:00:06]} e6 {[%clk 01:29:00]}
{[%emt 00:00:05]} 3. g3 {[%clk 01:31:37]} {[%emt 00:00:14]} d5 {[%clk
01:29:09]} {[%emt 00:00:20]} 4. Bg2 {[%clk 01:32:00]} {[%emt 00:00:06]} c5
{[%clk 01:29:33]} {[%emt 00:00:06]} 5. cxd5 {[%clk 01:31:23]} {[%emt 00:01:08]}
exd5 {[%clk 01:29:56]} {[%emt 00:00:06]} 6. Nf3 {[%clk 01:31:29]} {[%emt
00:00:25]} Be7 {[%clk 01:30:16]} {[%emt 00:00:10]} 7. O-O {[%clk 01:31:43]}
{[%emt 00:00:16]} O-O {[%clk 01:30:40]} {[%emt 00:00:06]} 8. dxc5 {[%clk
01:31:19]} {[%emt 00:00:55]} Bxc5 {[%clk 01:30:56]} {[%emt 00:00:13]} 9. Nc3
{[%clk 01:31:01]} {[%emt 00:00:48]} Nc6 {[%clk 01:31:12]} {[%emt 00:00:14]} 10.
Bg5 {[%clk 01:28:57]} {[%emt 00:02:35]} d4 {[%clk 01:31:35]} {[%emt 00:00:06]}
11. Ne4 {[%clk 01:27:34]} {[%emt 00:01:52]} Be7 {[%clk 01:31:58]} {[%emt
00:00:06]} 12. Nxf6+ {[%clk 01:26:47]} {[%emt 00:01:18]} Bxf6 {[%clk 01:32:21]}
{[%emt 00:00:07]} 13. Bxf6 {[%clk 01:26:36]} {[%emt 00:00:42]} Qxf6 {[%clk
01:32:43]} {[%emt 00:00:07]} 14. Qd2 {[%clk 01:23:17]} {[%emt 00:03:50]} Bg4
{[%clk 01:31:45]} {[%emt 00:01:27]} 15. Rfe1 {[%clk 01:14:47]} {[%emt
00:08:59]} Rfe8 {[%clk 01:27:03]} {[%emt 00:05:12]} 16. Rac1 {[%clk 01:11:32]}
{[%emt 00:03:45]} Rad8 {[%clk 01:23:59]} {[%emt 00:03:34]} 17. Qd3 {[%clk
00:55:23]} {[%emt 00:16:39]} Re7 {[%clk 01:14:23]} {[%emt 00:10:06]} 18. a3
{[%clk 00:53:52]} {[%emt 00:02:01]} Bf5 {[%clk 01:10:47]} {[%emt 00:04:04]} 19.
Qd2 {[%clk 00:52:27]} {[%emt 00:01:56]} h6 {[%clk 01:08:21]} {[%emt 00:02:57]}
20. Rc5 {[%clk 00:38:31]} {[%emt 00:14:26]} Be4 {[%clk 00:58:13]} {[%emt
00:10:37]} 21. Nh4 {[%clk 00:30:02]} {[%emt 00:08:59]} Bxg2 {[%clk 00:57:43]}
{[%emt 00:01:00]} 22. Nxg2 {[%clk 00:30:14]} {[%emt 00:00:18]} d3 {[%clk
00:57:51]} {[%emt 00:00:22]} 23. Nf4 {[%clk 00:24:21]} {[%emt 00:06:23]} Qd4
{[%emt 00:09:30]} 24. Rc3 {[%clk 00:22:07]} dxe2 {[%clk 00:41:37]} {[%emt
00:10:27]} 25. Rd3 {[%clk 00:21:20]} {[%emt 00:01:18]} g5 {[%clk 00:41:41]}
{[%emt 00:00:25]} 26. Rxd4 {[%clk 00:11:20]} {[%emt 00:10:30]} Nxd4 {[%clk
00:41:45]} {[%emt 00:00:26]} 27. Kg2 {[%clk 00:11:09]} {[%emt 00:00:40]} gxf4
{[%clk 00:42:08]} {[%emt 00:00:08]} 28. Qxf4 {[%clk 00:10:59]} {[%emt
00:00:40]} Re6 {[%clk 00:40:29]} {[%emt 00:02:08]} 29. h4 {[%clk 00:09:06]}
{[%emt 00:02:24]} Rd7 {[%clk 00:36:52]} {[%emt 00:04:07]} 30. Qb8+ {[%clk
00:08:04]} {[%emt 00:01:32]} Kg7 {[%clk 00:37:02]} {[%emt 00:00:17]} 31. Qf4
{[%clk 00:07:55]} {[%emt 00:00:42]} Rdd6 {[%clk 00:36:20]} {[%emt 00:01:12]} 32.
h5 {[%clk 00:07:15]} {[%emt 00:01:10]} Kf8 {[%clk 00:36:27]} {[%emt 00:00:23]}
33. Qc1 {[%clk 00:05:16]} {[%emt 00:02:29]} b6 {[%clk 00:34:57]} {[%emt
00:02:00]} 34. Qc8+ {[%clk 00:05:29]} {[%emt 00:00:16]} Ke7 {[%clk 00:34:24]}
{[%emt 00:01:03]} 35. Qc7+ {[%clk 00:05:18]} {[%emt 00:00:41]} Rd7 {[%clk
00:34:17]} {[%emt 00:00:37]} 36. Qc3 {[%clk 00:05:13]} {[%emt 00:00:35]} f5
{[%clk 00:34:22]} {[%emt 00:00:24]} 37. Qb4+ {[%clk 00:04:48]} {[%emt
00:00:55]} Ke8 {[%clk 00:30:55]} {[%emt 00:03:56]} 38. Qc3 {[%clk 00:04:30]}
{[%emt 00:00:50]} a5 {[%clk 00:31:07]} {[%emt 00:00:17]} 39. a4 {[%clk
00:04:14]} {[%emt 00:00:47]} Kd8 {[%clk 00:28:44]} {[%emt 00:02:51]} 40. Qc4
{[%clk 00:01:27]} {[%emt 00:03:18]} Rc6 {[%clk 00:22:22]} {[%emt 00:06:51]} 41.
Qa6 {[%clk 00:28:13]} {[%emt 00:03:45]} f4 {[%clk 00:43:10]} {[%emt 00:09:42]}
42. f3 {[%clk 00:19:52]} {[%emt 00:08:52]} fxg3 {[%clk 00:41:16]} {[%emt
00:02:24]} 43. Kxg3 {[%clk 00:19:28]} {[%emt 00:00:54]} Re6 {[%clk 00:38:04]}
{[%emt 00:03:41]} 44. Kf2 {[%clk 00:18:38]} {[%emt 00:01:21]} Ke7 {[%clk
00:34:40]} {[%emt 00:03:53]} 45. Qd3 {[%clk 00:17:34]} {[%emt 00:01:34]} Rd5
{[%clk 00:33:52]} {[%emt 00:01:18]} 46. Rg1 {[%clk 00:16:09]} {[%emt 00:01:56]}
Kd6 {[%clk 00:29:35]} {[%emt 00:04:47]} 47. Qa3+ {[%clk 00:15:42]} {[%emt
00:00:57]} Kc6 {[%clk 00:26:02]} {[%emt 00:04:02]} 48. Qc3+ {[%clk 00:15:22]}
{[%emt 00:00:51]} Kd6 {[%clk 00:26:26]} {[%emt 00:00:06]} 49. Qa3+ {[%clk
00:13:34]} {[%emt 00:02:18]} Kd7 {[%clk 00:26:04]} {[%emt 00:00:51]} 50. Qc3
{[%clk 00:11:35]} {[%emt 00:02:30]} Re7 {[%clk 00:24:05]} {[%emt 00:02:28]} 51.
Qc4 {[%clk 00:10:28]} {[%emt 00:01:38]} Rd6 {[%clk 00:22:53]} {[%emt 00:01:40]}
52. Rc1 {[%clk 00:09:52]} {[%emt 00:01:09]} Nc6 {[%clk 00:21:49]} {[%emt
00:01:33]} 53. Re1 {[%clk 00:09:35]} {[%emt 00:00:47]} Rde6 {[%clk 00:22:13]}
{[%emt 00:00:06]} 54. f4 {[%clk 00:08:10]} {[%emt 00:01:56]} Kc7 {[%clk
00:21:42]} {[%emt 00:01:02]} 55. f5 {[%clk 00:05:23]} {[%emt 00:03:17]} Re4
{[%clk 00:19:34]} {[%emt 00:02:36]} 56. Qd5 {[%clk 00:05:28]} {[%emt 00:00:26]}
Kb7 {[%clk 00:18:09]} {[%emt 00:01:54]} 57. Kf3 {[%clk 00:04:42]} {[%emt
00:01:17]} R4e5 {[%clk 00:18:10]} {[%emt 00:00:27]} 58. Qd3 {[%clk 00:04:34]}
{[%emt 00:00:40]} Rxf5+ {[%clk 00:18:24]} {[%emt 00:00:16]} 59. Qxf5 {[%clk
00:02:26]} {[%emt 00:02:38]} Nd4+ {[%clk 00:18:47]} {[%emt 00:00:07]} 60. Kf4
{[%clk 00:02:54]} {[%emt 00:00:03]} Nxf5 {[%clk 00:18:52]} {[%emt 00:00:24]} 61.
Kxf5 {[%clk 00:03:18]} {[%emt 00:00:06]} Kc6 {[%clk 00:18:43]} {[%emt
00:00:39]} 0-1

[Event "2. Itzehoer Schach Open"]
[Site "Itzehoe, Germany"]
[Date "2023.04.30"]
[Round "3.13"]
[White "Lebiedz, Oliver"]
[Black "Hielscher, Ursula"]
[Result "1-0"]
[TimeControl "90 min / 40 Züge + 30 min + 30 Sek pro Zug"]
[WhiteElo "1921"]
[BlackElo "1702"]

1. d4 {[%clk 01:30:46]} {[%emt 00:00:13]} d5 {[%clk 01:30:51]} {[%emt
00:00:10]} 2. Nf3 {[%clk 01:29:23]} {[%emt 00:01:53]} Nf6 {[%clk 01:30:19]}
{[%emt 00:01:02]} 3. e3 {[%clk 01:28:39]} {[%emt 00:01:13]} c6 {[%clk
01:30:22]} {[%emt 00:00:27]} 4. Bd3 {[%clk 01:28:47]} {[%emt 00:00:22]} Bg4
{[%clk 01:30:14]} {[%emt 00:00:38]} 5. h3 {[%clk 01:20:10]} {[%emt 00:09:08]}
Bh5 {[%clk 01:30:22]} {[%emt 00:00:22]} 6. Nbd2 {[%clk 01:18:21]} {[%emt
00:02:18]} Nbd7 {[%clk 01:29:46]} {[%emt 00:01:07]} 7. g4 {[%clk 01:18:42]}
{[%emt 00:00:09]} Bg6 {[%clk 01:30:12]} {[%emt 00:00:04]} 8. Qe2 {[%clk
01:11:41]} {[%emt 00:07:30]} Qc7 {[%clk 01:29:37]} {[%emt 00:01:05]} 9. e4
{[%clk 01:11:14]} {[%emt 00:00:56]} dxe4 {[%clk 01:29:23]} {[%emt 00:00:46]} 10.
Nxe4 {[%clk 01:11:34]} {[%emt 00:00:10]} Nxe4 {[%clk 01:29:36]} {[%emt
00:00:16]} 11. Bxe4 {[%clk 01:11:57]} {[%emt 00:00:07]} Bxe4 {[%clk 01:29:46]}
{[%emt 00:00:20]} 12. Qxe4 {[%clk 01:12:22]} {[%emt 00:00:05]} Nf6 {[%clk
01:29:55]} {[%emt 00:00:20]} 13. Qe2 {[%clk 01:06:20]} {[%emt 00:06:32]} O-O-O
{[%clk 01:28:53]} {[%emt 00:01:33]} 14. Bd2 {[%clk 01:06:40]} {[%emt 00:00:10]}
e6 {[%clk 01:28:25]} {[%emt 00:00:58]} 15. O-O-O {[%clk 01:06:48]} {[%emt
00:00:22]} Bd6 {[%clk 01:27:55]} {[%emt 00:01:00]} 16. Kb1 {[%clk 01:05:08]}
{[%emt 00:02:10]} Nd5 {[%clk 01:23:34]} {[%emt 00:04:51]} 17. c4 {[%clk
01:03:38]} {[%emt 00:02:00]} Nf4 {[%clk 01:21:29]} {[%emt 00:02:35]} 18. Qe4
{[%clk 01:00:51]} {[%emt 00:03:17]} Ng6 {[%clk 01:18:33]} {[%emt 00:03:27]} 19.
h4 {[%clk 00:54:46]} {[%emt 00:06:34]} Bf4 {[%clk 01:16:34]} {[%emt 00:02:29]}
20. h5 {[%clk 00:29:05]} {[%emt 00:26:11]} Bxd2 {[%clk 01:12:24]} {[%emt
00:04:40]} 21. hxg6 {[%emt 00:07:03]} Ba5 {[%clk 01:06:52]} 22. Rxh7 {[%clk
00:19:44]} {[%emt 00:09:20]} fxg6 {[%clk 01:01:43]} {[%emt 00:05:39]} 23. Qxe6+
{[%clk 00:18:57]} {[%emt 00:01:17]} Kb8 {[%clk 01:02:03]} {[%emt 00:00:09]} 24.
Rdh1 {[%clk 00:11:54]} {[%emt 00:07:33]} Rhf8 {[%clk 01:00:16]} {[%emt
00:02:18]} 25. Qe3 {[%clk 00:07:35]} {[%emt 00:04:48]} Qf7 {[%clk 00:56:30]}
{[%emt 00:04:17]} 26. Ng5 {[%clk 00:03:09]} {[%emt 00:04:56]} Qf6 {[%clk
00:53:49]} {[%emt 00:03:11]} 27. Ne6 {[%clk 00:02:35]} {[%emt 00:01:04]} Rfe8
{[%clk 00:53:06]} {[%emt 00:01:13]} 28. Qg3+ {[%clk 00:02:57]} {[%emt
00:00:08]} Kc8 {[%clk 00:51:34]} {[%emt 00:02:02]} 29. Nxd8 {[%clk 00:03:22]}
{[%emt 00:00:05]} Rxd8 {[%clk 00:51:20]} {[%emt 00:00:44]} 30. Qe3 {[%clk
00:02:38]} {[%emt 00:01:14]} Rxd4 {[%clk 00:49:52]} {[%emt 00:01:59]} 31. Rh8+
{[%clk 00:02:38]} {[%emt 00:00:29]} Bd8 {[%clk 00:47:22]} {[%emt 00:02:59]} 32.
f3 {[%clk 00:02:15]} {[%emt 00:00:54]} Qd6 {[%clk 00:44:17]} {[%emt 00:03:35]}
33. Rc1 {[%clk 00:01:11]} {[%emt 00:01:34]} Rd2 {[%clk 00:42:48]} {[%emt
00:01:59]} 34. Qc3 {[%clk 00:01:05]} {[%emt 00:00:35]} Qd3+ {[%clk 00:40:15]}
{[%emt 00:03:04]} 35. Qxd3 {[%clk 00:01:17]} {[%emt 00:00:18]} Rxd3 {[%clk
00:40:41]} {[%emt 00:00:04]} 36. Kc2 {[%clk 00:01:18]} {[%emt 00:00:29]} Rd7
{[%clk 00:40:25]} {[%emt 00:00:46]} 37. Re1 {[%clk 00:01:14]} {[%emt 00:00:34]}
Kc7 {[%clk 00:40:46]} {[%emt 00:00:10]} 38. c5 {[%clk 00:01:10]} {[%emt
00:00:34]} Bg5 {[%clk 00:40:42]} {[%emt 00:00:34]} 39. Re2 {[%clk 00:00:45]}
{[%emt 00:00:54]} Rd5 {[%clk 00:40:32]} {[%emt 00:00:41]} 40. b4 {[%clk
00:01:03]} {[%emt 00:00:12]} a5 {[%clk 00:40:37]} {[%emt 00:00:25]} 41. a3
{[%clk 00:01:25]} {[%emt 00:00:08]} axb4 {[%clk 00:40:57]} {[%emt 00:00:09]} 42.
axb4 {[%clk 00:01:52]} {[%emt 00:00:03]} Rd4 {[%clk 00:40:32]} {[%emt
00:00:56]} 43. Re4 {[%clk 00:28:36]} {[%emt 00:03:44]} Rd2+ {[%clk 01:09:54]}
{[%emt 00:01:09]} 44. Kc3 {[%clk 00:26:26]} {[%emt 00:02:38]} Rf2 {[%clk
01:09:52]} {[%emt 00:00:34]} 45. Rh3 {[%clk 00:25:38]} {[%emt 00:01:18]} Kd7
{[%clk 01:08:49]} {[%emt 00:01:33]} 46. Kb3 {[%clk 00:17:34]} {[%emt 00:08:33]}
Rf1 {[%clk 01:08:27]} {[%emt 00:00:52]} 47. Re2 {[%clk 00:17:04]} {[%emt
00:01:01]} Rb1+ {[%clk 01:07:48]} {[%emt 00:01:08]} 48. Kc4 {[%clk 00:15:32]}
{[%emt 00:02:02]} Rc1+ {[%clk 01:07:53]} {[%emt 00:00:26]} 49. Kb3 {[%clk
00:13:24]} {[%emt 00:02:39]} Rb1+ {[%clk 01:08:17]} {[%emt 00:00:06]} 50. Rb2
{[%clk 00:13:06]} {[%emt 00:00:47]} Re1 {[%clk 01:08:35]} {[%emt 00:00:12]} 51.
Kc4 {[%clk 00:12:33]} {[%emt 00:01:03]} Rc1+ {[%clk 01:08:49]} {[%emt
00:00:16]} 52. Kd3 {[%clk 00:12:32]} {[%emt 00:00:30]} Bf6 {[%clk 01:08:10]}
{[%emt 00:01:11]} 53. Rb3 {[%clk 00:12:35]} {[%emt 00:00:26]} Rd1+ {[%clk
01:07:24]} {[%emt 00:01:15]} 54. Ke2 {[%clk 00:12:26]} {[%emt 00:00:39]} Rc1
{[%clk 01:07:11]} {[%emt 00:00:44]} 55. f4 {[%clk 00:11:58]} {[%emt 00:00:57]}
Rc4 {[%clk 01:06:09]} {[%emt 00:01:33]} 56. Kf3 {[%clk 00:11:27]} {[%emt
00:00:59]} Bc3 {[%clk 01:05:26]} {[%emt 00:01:15]} 57. Rh2 {[%clk 00:08:11]}
{[%emt 00:03:44]} Bxb4 {[%clk 01:03:56]} {[%emt 00:02:02]} 58. Rhb2 {[%clk
00:08:35]} {[%emt 00:00:06]} Bxc5 {[%clk 01:03:50]} {[%emt 00:00:36]} 59. Rxb7+
{[%clk 00:08:59]} {[%emt 00:00:06]} Ke6 {[%clk 01:02:23]} {[%emt 00:01:57]} 60.
Re2+ {[%clk 00:08:56]} {[%emt 00:00:33]} Kd6 {[%clk 01:01:15]} {[%emt
00:01:38]} 61. Rxg7 {[%clk 00:09:12]} {[%emt 00:00:13]} Rc3+ {[%clk 01:01:10]}
{[%emt 00:00:36]} 62. Kg2 {[%clk 00:09:12]} {[%emt 00:00:30]} Be3 {[%clk
01:00:45]} {[%emt 00:00:55]} 63. Rxg6+ {[%clk 00:09:27]} {[%emt 00:00:14]} Kd5
{[%clk 01:00:51]} {[%emt 00:00:25]} 64. f5 {[%clk 00:09:36]} {[%emt 00:00:21]}
Bf4 {[%clk 01:00:11]} {[%emt 00:01:11]} 65. f6 {[%clk 00:09:20]} {[%emt
00:00:45]} 1-0

[Event "2. Itzehoer Schach Open"]
[Site "Itzehoe, Germany"]
[Date "2023.04.30"]
[Round "3.19"]
[White "Marzik, Arne"]
[Black "Stiller, Maximilian"]
[Result "0-1"]
[TimeControl "90 min / 40 Züge + 30 min + 30 Sek pro Zug"]
[WhiteElo "1545"]
[BlackElo "1657"]

1. d4 {[%clk 01:30:58]} {[%emt 00:00:02]} Nf6 {[%clk 01:28:07]} {[%emt
00:02:53]} 2. Nf3 {[%clk 01:29:59]} {[%emt 00:01:29]} e6 {[%clk 01:28:13]}
{[%emt 00:00:24]} 3. g3 {[%clk 01:30:21]} {[%emt 00:00:08]} d5 {[%clk
01:28:36]} {[%emt 00:00:07]} 4. c4 {[%clk 01:30:40]} {[%emt 00:00:11]} Be7
{[%clk 01:28:58]} {[%emt 00:00:08]} 5. Bg2 {[%clk 01:31:05]} {[%emt 00:00:05]}
O-O {[%clk 01:29:17]} {[%emt 00:00:10]} 6. O-O {[%clk 01:31:30]} {[%emt
00:00:05]} dxc4 {[%clk 01:29:32]} {[%emt 00:00:15]} 7. Qc2 {[%clk 01:31:07]}
{[%emt 00:00:53]} a6 {[%clk 01:29:22]} {[%emt 00:00:41]} 8. Qxc4 {[%clk
01:31:23]} {[%emt 00:00:14]} b5 {[%clk 01:29:36]} {[%emt 00:00:16]} 9. Qc2
{[%clk 01:30:55]} {[%emt 00:00:57]} Bb7 {[%clk 01:29:43]} {[%emt 00:00:23]} 10.
Nc3 {[%clk 01:30:08]} {[%emt 00:01:17]} Nbd7 {[%clk 01:27:26]} {[%emt
00:02:46]} 11. Bf4 {[%clk 01:29:27]} {[%emt 00:01:11]} c5 {[%clk 01:26:48]}
{[%emt 00:01:08]} 12. e4 {[%clk 01:18:28]} {[%emt 00:11:31]} Rc8 {[%clk
01:26:03]} {[%emt 00:01:15]} 13. Qe2 {[%clk 01:16:55]} {[%emt 00:02:02]} b4
{[%clk 01:25:13]} {[%emt 00:01:20]} 14. Na4 {[%clk 01:13:21]} {[%emt 00:04:05]}
cxd4 {[%clk 01:13:57]} {[%emt 00:11:45]} 15. Nxd4 {[%clk 01:13:27]} {[%emt
00:00:24]} e5 {[%clk 01:14:11]} {[%emt 00:00:17]} 16. Nf5 {[%clk 01:13:17]}
{[%emt 00:00:40]} exf4 {[%clk 01:14:04]} {[%emt 00:00:36]} 17. Rfd1 {[%clk
01:13:17]} {[%emt 00:00:30]} Qe8 {[%clk 01:05:49]} {[%emt 00:08:45]} 18. gxf4
{[%clk 01:09:59]} {[%emt 00:03:48]} g6 {[%clk 00:55:21]} {[%emt 00:10:59]} 19.
Nd6 {[%clk 01:07:15]} {[%emt 00:03:14]} Bxd6 {[%clk 00:55:29]} {[%emt
00:00:22]} 20. Rxd6 {[%clk 01:07:39]} {[%emt 00:00:05]} Qe7 {[%clk 00:47:10]}
{[%emt 00:08:49]} 21. Rad1 {[%clk 01:06:16]} {[%emt 00:01:54]} Rc7 {[%clk
00:44:52]} {[%emt 00:02:47]} 22. Bh3 {[%clk 01:05:02]} {[%emt 00:01:44]} Re8
{[%clk 00:32:39]} {[%emt 00:12:43]} 23. e5 {[%clk 01:03:36]} {[%emt 00:01:56]}
Nf8 {[%clk 00:28:55]} {[%emt 00:04:14]} 24. Nb6 {[%clk 00:59:08]} {[%emt
00:04:58]} Nh5 {[%clk 00:27:03]} {[%emt 00:02:22]} 25. Qe3 {[%clk 00:49:43]}
{[%emt 00:09:55]} Qh4 {[%clk 00:24:28]} {[%emt 00:03:05]} 26. R1d4 {[%clk
00:48:13]} {[%emt 00:01:59]} Ne6 {[%clk 00:22:05]} {[%emt 00:02:54]} 27. Bxe6
{[%clk 00:44:01]} {[%emt 00:04:42]} Rxe6 {[%clk 00:18:52]} {[%emt 00:03:42]} 28.
Rd8+ {[%clk 00:42:33]} {[%emt 00:01:59]} Kg7 {[%clk 00:18:23]} {[%emt
00:00:59]} 29. f5 {[%clk 00:41:55]} {[%emt 00:01:08]} Rec6 {[%clk 00:16:17]}
{[%emt 00:02:36]} 30. f6+ {[%clk 00:30:12]} {[%emt 00:12:13]} Nxf6 {[%clk
00:16:40]} {[%emt 00:00:07]} 31. exf6+ {[%clk 00:30:33]} {[%emt 00:00:09]} Qxf6
{[%clk 00:17:02]} {[%emt 00:00:08]} 32. h3 {[%clk 00:23:54]} {[%emt 00:07:09]}
Rxb6 {[%emt 00:10:38]} 33. Qe8 {[%clk 00:15:25]} Rc1+ {[%clk 00:15:46]} {[%emt
00:00:37]} 34. Kh2 {[%clk 00:14:31]} {[%emt 00:01:25]} Qxf2# {[%clk 00:16:05]}
{[%emt 00:00:10]} 0-1

[Event "2. Itzehoer Schach Open"]
[Site "Itzehoe, Germany"]
[Date "2023.04.30"]
[Round "3.17"]
[White "Schacht, David"]
[Black "Papenfuss, Kai"]
[Result "1/2-1/2"]
[TimeControl "90 min / 40 Züge + 30 min + 30 Sek pro Zug"]
[WhiteElo "1541"]
[BlackElo "1751"]

1. e4 {[%clk 01:30:58]} c5 {[%clk 01:30:51]} {[%emt 00:00:09]} 2. Nc3 {[%clk
01:31:01]} {[%emt 00:00:28]} e6 {[%clk 01:31:12]} {[%emt 00:00:09]} 3. f4
{[%clk 01:30:33]} {[%emt 00:00:58]} a6 {[%clk 01:31:24]} {[%emt 00:00:18]} 4.
Nf3 {[%clk 01:29:23]} {[%emt 00:01:39]} d5 {[%clk 01:31:41]} {[%emt 00:00:13]}
5. d3 {[%clk 01:26:59]} {[%emt 00:02:55]} Nc6 {[%clk 01:31:38]} {[%emt
00:00:33]} 6. g3 {[%clk 01:24:42]} {[%emt 00:02:47]} g6 {[%clk 01:26:38]}
{[%emt 00:05:30]} 7. Bg2 {[%clk 01:23:39]} {[%emt 00:01:33]} Bg7 {[%clk
01:25:22]} {[%emt 00:01:46]} 8. O-O {[%clk 01:21:14]} {[%emt 00:02:55]} Nge7
{[%clk 01:23:14]} {[%emt 00:02:37]} 9. Qe2 {[%clk 01:11:50]} {[%emt 00:09:54]}
O-O {[%clk 01:18:50]} {[%emt 00:04:54]} 10. Bd2 {[%clk 01:07:38]} {[%emt
00:04:43]} b5 {[%clk 01:12:09]} {[%emt 00:07:11]} 11. Rae1 {[%clk 01:03:33]}
{[%emt 00:04:35]} Nd4 {[%clk 01:06:46]} {[%emt 00:05:52]} 12. Nxd4 {[%clk
01:03:28]} {[%emt 00:00:35]} cxd4 {[%clk 01:07:14]} {[%emt 00:00:02]} 13. Nd1
{[%clk 01:00:45]} {[%emt 00:03:14]} a5 {[%clk 01:01:55]} {[%emt 00:05:49]} 14.
exd5 {[%clk 00:57:43]} {[%emt 00:03:32]} Nxd5 {[%clk 01:00:32]} {[%emt
00:01:53]} 15. c4 {[%clk 00:56:17]} {[%emt 00:01:56]} dxc3 {[%clk 00:59:36]}
{[%emt 00:01:27]} 16. Nxc3 {[%clk 00:49:30]} {[%emt 00:07:15]} Ba6 {[%clk
00:43:21]} {[%emt 00:16:45]} 17. Nxd5 {[%clk 00:42:57]} {[%emt 00:07:04]} exd5
{[%clk 00:43:40]} {[%emt 00:00:11]} 18. Bc3 {[%clk 00:41:15]} {[%emt 00:02:12]}
Bxc3 {[%clk 00:38:48]} {[%emt 00:05:23]} 19. bxc3 {[%clk 00:40:36]} {[%emt
00:01:09]} Rc8 {[%clk 00:39:08]} {[%emt 00:00:09]} 20. Qe5 {[%clk 00:34:52]}
{[%emt 00:06:14]} b4 {[%clk 00:31:27]} {[%emt 00:08:11]} 21. cxb4 {[%clk
00:32:46]} {[%emt 00:02:35]} Bxd3 {[%clk 00:31:13]} {[%emt 00:00:45]} 22. Rf2
{[%clk 00:31:40]} {[%emt 00:01:36]} Bc4 {[%clk 00:27:41]} {[%emt 00:04:02]} 23.
Rd1 {[%clk 00:29:47]} {[%emt 00:02:22]} Re8 {[%clk 00:25:29]} {[%emt 00:02:42]}
24. Qd4 {[%clk 00:28:21]} {[%emt 00:01:56]} axb4 {[%clk 00:24:31]} {[%emt
00:01:30]} 25. Bxd5 {[%clk 00:28:11]} {[%emt 00:00:39]} Bxd5 {[%clk 00:22:55]}
{[%emt 00:02:06]} 26. Qxd5 {[%clk 00:28:36]} {[%emt 00:00:05]} Re1+ {[%clk
00:22:34]} {[%emt 00:00:51]} 27. Rf1 {[%clk 00:27:55]} {[%emt 00:01:10]} Qb6+
{[%clk 00:22:05]} {[%emt 00:00:57]} 28. Qd4 {[%clk 00:24:08]} {[%emt 00:04:19]}
Rxf1+ {[%clk 00:22:02]} {[%emt 00:00:34]} 29. Kxf1 {[%clk 00:24:29]} {[%emt
00:00:08]} Qa6+ {[%clk 00:20:14]} {[%emt 00:02:18]} 30. Kg1 {[%clk 00:22:23]}
{[%emt 00:02:36]} Rc2 {[%clk 00:16:21]} {[%emt 00:04:22]} 31. Qxb4 {[%clk
00:18:38]} {[%emt 00:04:17]} Qa7+ {[%clk 00:15:40]} {[%emt 00:01:10]} 32. Qd4
{[%clk 00:17:38]} {[%emt 00:01:30]} Qxa2 {[%clk 00:14:58]} {[%emt 00:01:12]} 33.
Qe4 {[%clk 00:14:37]} {[%emt 00:03:31]} Qa7+ {[%clk 00:11:40]} {[%emt
00:03:49]} 34. Qd4 {[%clk 00:13:22]} {[%emt 00:01:45]} 1/2-1/2

[Event "2. Itzehoer Schach Open"]
[Site "Itzehoe, Germany"]
[Date "2023.04.30"]
[Round "3.32"]
[White "Schartl, Richard"]
[Black "Knudsen, Max Leon"]
[Result "0-1"]
[TimeControl "90 min / 40 Züge + 30 min + 30 Sek pro Zug"]
[WhiteElo "849"]
[BlackElo "931"]

1. e4 {[%clk 01:30:47]} {[%emt 00:00:12]} g6 {[%clk 01:30:55]} {[%emt
00:00:06]} 2. Nc3 {[%clk 01:31:06]} {[%emt 00:00:11]} Bg7 {[%clk 01:31:08]}
{[%emt 00:00:16]} 3. Nf3 {[%clk 01:31:23]} {[%emt 00:00:13]} d6 {[%clk
01:31:15]} {[%emt 00:00:24]} 4. d4 {[%clk 01:31:32]} {[%emt 00:00:20]} a6
{[%clk 01:31:38]} {[%emt 00:00:07]} 5. a4 {[%clk 01:31:48]} {[%emt 00:00:14]}
b6 {[%clk 01:31:11]} {[%emt 00:00:57]} 6. Bf4 {[%clk 01:31:55]} {[%emt
00:00:24]} Bb7 {[%clk 01:30:49]} {[%emt 00:00:51]} 7. Bc4 {[%clk 01:31:35]}
{[%emt 00:00:52]} Nd7 {[%clk 01:30:02]} {[%emt 00:01:17]} 8. O-O {[%clk
01:31:46]} {[%emt 00:00:18]} Ngf6 {[%clk 01:29:39]} {[%emt 00:00:52]} 9. Ng5
{[%clk 01:30:35]} {[%emt 00:01:03]} O-O {[%clk 01:29:46]} {[%emt 00:01:02]} 10.
Nf3 {[%clk 01:30:21]} {[%emt 00:00:44]} Nxe4 {[%clk 01:29:57]} {[%emt
00:00:19]} 11. Nxe4 {[%emt 00:01:52]} Bxe4 {[%clk 01:30:13]} {[%emt 00:00:13]}
12. d5 {[%clk 01:29:15]} {[%emt 00:00:14]} e6 {[%clk 01:29:53]} {[%emt
00:00:50]} 13. dxe6 {[%clk 01:28:31]} {[%emt 00:01:14]} fxe6 {[%clk 01:30:00]}
{[%emt 00:00:23]} 14. Re1 {[%clk 01:28:20]} {[%emt 00:00:39]} Rxf4 {[%clk
01:29:38]} {[%emt 00:00:53]} 15. g3 {[%clk 01:27:47]} {[%emt 00:01:36]} Bxf3
{[%clk 01:30:11]} {[%emt 00:00:23]} 16. Be2 {[%clk 01:27:14]} {[%emt 00:01:04]}
Bxe2 {[%clk 01:29:48]} {[%emt 00:00:53]} 17. Qxe2 {[%clk 01:27:12]} {[%emt
00:00:32]} Rf6 {[%clk 01:28:09]} {[%emt 00:02:08]} 18. f4 {[%clk 01:27:03]}
{[%emt 00:00:40]} e5 {[%clk 01:28:08]} {[%emt 00:00:31]} 19. Qc4+ {[%clk
01:27:01]} {[%emt 00:00:32]} Kh8 {[%clk 01:27:52]} {[%emt 00:00:44]} 20. fxe5
{[%clk 01:26:13]} {[%emt 00:00:38]} Nxe5 {[%clk 01:28:16]} {[%emt 00:00:47]} 21.
g4 {[%clk 01:26:00]} {[%emt 00:00:43]} Nxc4 {[%clk 01:28:32]} {[%emt 00:00:13]}
0-1